bitfinex/quotes_BTCUSD_20241004
["timestamp","ask_amount","ask_price","bid_price","bid_amount"]
[1728054831652,0.32757861,61785.0,61784.0,0.001752]
[1728054831885,0.4474208,61785.0,61784.0,0.001752]
[1728054832111,0.4564208,61785.0,61784.0,0.001752]
[1728054832335,0.4664208,61785.0,61784.0,0.001752]
[1728054832760,0.4804208,61785.0,61784.0,0.001752]
[1728054832971,0.4704208,61785.0,61784.0,0.001752]
[1728054833185,0.4724208,61785.0,61784.0,0.001752]
[1728054833411,0.4844208,61785.0,61784.0,0.001752]
[1728054834273,0.31523178,61785.0,61784.0,0.001752]
[1728054834490,0.32858856,61785.0,61784.0,0.001752]
[1728054835386,0.35158856,61785.0,61784.0,0.001752]
[1728054835617,0.35088856,61785.0,61784.0,0.001752]
[1728054836579,0.35288856,61785.0,61784.0,0.001752]
[1728054836824,0.76961907,61785.0,61784.0,0.001752]
[1728054837061,0.76961907,61785.0,61768.0,0.0152]
[1728054837062,0.44255032,61769.0,61768.0,0.0152]
[1728054837309,0.5559071,61769.0,61768.0,0.0152]
[1728054837767,0.55593478,61769.0,61768.0,0.0152]
[1728054838265,0.80137371,61769.0,61768.0,0.0152]
[1728054838471,0.74412149,61769.0,61768.0,0.0152]
[1728054838708,0.75212149,61769.0,61768.0,0.0152]
[1728054838922,0.75412149,61769.0,61768.0,0.0152]
[1728054839362,0.75412149,61769.0,61765.0,0.001642]
[1728054839363,0.163901,61766.0,61765.0,0.001642]
[1728054839579,0.46197217,61766.0,61765.0,0.001642]
[1728054839820,0.162411,61762.0,61756.0,0.0160301]
[1728054840073,0.75985278,61762.0,61756.0,0.0160301]
[1728054840310,0.75935278,61762.0,61756.0,0.0160301]
[1728054840805,0.74596832,61762.0,61756.0,0.0160301]
[1728054841327,0.29832557,61762.0,61756.0,0.0160301]
[1728054841568,0.18874018,61762.0,61756.0,0.0160301]
[1728054841805,0.18874018,61762.0,61756.0,0.0973301]
[1728054842038,0.18874018,61762.0,61759.0,0.323838]
[1728054842039,0.04082918,61762.0,61759.0,0.323838]
[1728054842271,0.02682918,61762.0,61759.0,0.323838]
[1728054842530,0.02682918,61762.0,61761.0,0.163756]
[1728054842531,0.03982918,61762.0,61761.0,0.163756]
[1728054842761,0.03982918,61762.0,61761.0,0.001842]
[1728054842993,0.21874018,61762.0,61761.0,0.001842]
[1728054843249,0.05682918,61762.0,61761.0,0.003342]
[1728054843737,0.28134769,61762.0,61761.0,0.001842]
[1728054843996,0.21874018,61762.0,61761.0,0.002342]
[1728054844256,0.21874018,61762.0,61761.0,0.165256]
[1728054844257,0.05682918,61762.0,61761.0,0.165256]
[1728054844499,0.04582918,61762.0,61761.0,0.240356]
[1728054844738,0.04982918,61762.0,61761.0,0.240356]
[1728054845256,0.03241457,61762.0,61761.0,0.240356]
[1728054845503,0.01741457,61762.0,61761.0,0.240356]
[1728054845743,0.01841457,61762.0,61761.0,0.240356]
[1728054845970,0.01341457,61762.0,61761.0,0.240356]
[1728054846286,0.01341457,61762.0,61761.0,0.24464259]
[1728054846510,0.01541457,61762.0,61761.0,0.24464259]
[1728054847246,0.24708293,61785.0,61778.0,0.0015]
[1728054847522,0.24708293,61785.0,61784.0,0.161854]
[1728054848005,0.001644,61785.0,61784.0,0.161854]
[1728054848485,0.011644,61785.0,61784.0,0.161854]
[1728054848749,0.011644,61785.0,61784.0,0.163354]
[1728054848750,0.001644,61785.0,61784.0,0.163354]
[1728054848991,0.002644,61785.0,61784.0,0.163354]
[1728054849237,0.003644,61785.0,61784.0,0.0015]
[1728054849494,0.002644,61785.0,61784.0,0.0015]
[1728054849735,0.165495,61785.0,61784.0,0.0015]
[1728054849973,0.165495,61785.0,61780.0,0.0015]
[1728054849974,0.161862,61781.0,61780.0,0.0015]
[1728054850214,0.161862,61781.0,61777.0,0.40730893]
[1728054850215,0.161858,61783.0,61781.0,0.0015]
[1728054850465,0.003644,61785.0,61776.0,0.0786]
[1728054850725,0.003644,61785.0,61771.0,0.0015]
[1728054850726,0.28065732,61782.0,61771.0,0.0015]
[1728054850973,0.28065732,61782.0,61772.0,0.24543893]
[1728054850974,0.161884,61773.0,61772.0,0.24543893]
[1728054851213,0.323726,61781.0,61767.0,0.0015]
[1728054851214,0.28065732,61776.0,61767.0,0.0015]
[1728054851466,0.28065732,61776.0,61766.0,0.0015]
[1728054851707,0.28065732,61776.0,61766.0,0.1634]
[1728054851972,0.28065732,61776.0,61769.0,0.0015]
[1728054851973,0.323762,61774.0,61769.0,0.0015]
[1728054852206,0.16189,61770.0,61769.0,0.0015]
[1728054852455,0.16189,61770.0,61761.0,0.081242]
[1728054852456,0.06086836,61770.0,61761.0,0.081242]
[1728054852703,0.161898,61767.0,61766.0,0.001]
[1728054853954,0.24543893,61773.0,61761.0,0.001842]
[1728054854194,0.161911,61762.0,61761.0,0.001842]
[1728054854903,0.07235196,61783.0,61761.0,0.32567]
[1728054854904,0.005,61767.0,61761.0,0.32567]
[1728054855150,0.002,61767.0,61766.0,0.163401]
[1728054855390,0.27807593,61780.0,61770.0,0.16189]
[1728054855391,0.24543893,61780.0,61770.0,0.16189]
[1728054855621,0.24543893,61780.0,61779.0,0.0015]
[1728054856112,0.323699,61786.0,61783.0,0.0015]
[1728054856344,0.323714,61783.0,61780.0,0.0015]
[1728054856557,0.323714,61783.0,61771.0,0.0785]
[1728054856558,0.323697,61787.0,61782.0,0.0015]
[1728054856788,0.16185,61786.0,61784.0,0.0015]
[1728054857048,0.323687,61788.0,61784.0,0.002423]
[1728054857296,0.163495,61785.0,61784.0,0.002423]
[1728054857785,0.163495,61785.0,61784.0,0.000923]
[1728054858268,0.166495,61785.0,61784.0,0.000923]
[1728054858757,0.165495,61785.0,61784.0,0.002423]
[1728054859013,0.169495,61785.0,61784.0,0.003423]
[1728054859275,0.007644,61785.0,61784.0,0.003423]
[1728054859806,0.011644,61785.0,61784.0,0.003423]
[1728054860106,0.02497095,61785.0,61784.0,0.003423]
[1728054860302,0.18682195,61785.0,61784.0,0.003423]
[1728054860813,0.18682195,61785.0,61784.0,0.000923]
[1728054860814,0.18082195,61785.0,61784.0,0.000923]
[1728054861049,0.46247927,61785.0,61784.0,0.000923]
[1728054861533,0.45747927,61785.0,61784.0,0.000923]
[1728054861768,0.46247927,61785.0,61784.0,0.000923]
[1728054862009,0.46047927,61785.0,61784.0,0.000923]
[1728054862271,0.17982195,61785.0,61784.0,0.000923]
[1728054862522,0.18082195,61785.0,61784.0,0.000923]
[1728054862779,0.17682195,61785.0,61784.0,0.000923]
[1728054863752,0.18682195,61785.0,61784.0,0.001923]
[1728054863954,0.19882195,61785.0,61784.0,0.002923]
[1728054864365,0.17682195,61785.0,61784.0,0.000923]
[1728054864640,0.17682195,61785.0,61784.0,0.001923]
[1728054864641,0.18582195,61785.0,61784.0,0.001923]
[1728054864910,0.17682195,61785.0,61784.0,0.000923]
[1728054865133,0.18382195,61785.0,61784.0,0.003423]
[1728054865364,0.19482195,61785.0,61784.0,0.004423]
[1728054865584,0.17682195,61785.0,61784.0,0.002423]
[1728054865816,0.18082195,61785.0,61784.0,0.002423]
[1728054866968,0.17982195,61785.0,61784.0,0.000923]
[1728054867473,0.02397095,61785.0,61784.0,0.163777]
[1728054867733,0.02397095,61785.0,61784.0,0.165277]
[1728054867982,0.03097095,61785.0,61784.0,0.166277]
[1728054868183,0.02197095,61785.0,61784.0,0.165277]
[1728054868432,0.02197095,61785.0,61784.0,0.164277]
[1728054868433,0.01497095,61785.0,61784.0,0.164277]
[1728054868681,0.01497095,61785.0,61784.0,0.167277]
[1728054869155,0.01797095,61785.0,61784.0,0.167277]
[1728054869905,0.01797095,61785.0,61784.0,0.005423]
[1728054870117,0.004644,61785.0,61784.0,0.002423]
[1728054870331,0.004644,61785.0,61784.0,0.167277]
[1728054870538,0.001644,61785.0,61784.0,0.167277]
[1728054870779,0.001644,61785.0,61784.0,0.007423]
[1728054871038,0.001644,61785.0,61784.0,0.004423]
[1728054871503,0.001644,61785.0,61784.0,0.169277]
[1728054871715,0.001644,61785.0,61784.0,0.164277]
[1728054872113,0.001644,61785.0,61784.0,0.167277]
[1728054872370,0.001644,61785.0,61784.0,0.166277]
[1728054873770,0.001644,61785.0,61784.0,0.165277]
[1728054873989,0.001644,61785.0,61784.0,0.164277]
[1728054874233,0.001644,61785.0,61784.0,0.166277]
[1728054874454,0.001644,61785.0,61784.0,0.168277]
[1728054874676,0.001644,61785.0,61784.0,0.166277]
[1728054874898,0.001644,61785.0,61784.0,0.169277]
[1728054875358,0.001644,61785.0,61784.0,0.166277]
[1728054875600,0.001644,61785.0,61784.0,0.164277]
[1728054875848,0.001644,61785.0,61784.0,0.171277]
[1728054875849,0.002644,61785.0,61784.0,0.171277]
[1728054876758,0.02802018,61785.0,61784.0,0.171277]
[1728054876971,0.02702018,61785.0,61784.0,0.166277]
[1728054877180,0.02702018,61785.0,61784.0,0.164277]
[1728054877407,0.02802018,61785.0,61784.0,0.174277]
[1728054877610,0.02902018,61785.0,61784.0,0.180277]
[1728054877831,0.18887118,61785.0,61784.0,0.000923]
[1728054878258,0.19087118,61785.0,61784.0,0.015923]
[1728054878543,0.18987118,61785.0,61784.0,0.009923]
[1728054878772,0.18987118,61785.0,61784.0,0.003923]
[1728054878773,0.18887118,61785.0,61784.0,0.003923]
[1728054878984,0.19287118,61785.0,61784.0,0.003923]
[1728054879985,0.19287118,61785.0,61784.0,0.000923]
[1728054880435,0.19487118,61785.0,61784.0,0.001923]
[1728054880673,0.38805789,61785.0,61784.0,0.002923]
[1728054880905,0.20187118,61785.0,61784.0,0.002923]
[1728054881153,0.19487118,61785.0,61784.0,0.001923]
[1728054881602,0.19887118,61785.0,61784.0,0.001923]
[1728054884142,0.03702018,61785.0,61784.0,0.165277]
[1728054885331,0.03302018,61785.0,61784.0,0.165277]
[1728054885569,0.03302018,61785.0,61784.0,0.003423]
[1728054885804,0.19487118,61785.0,61784.0,0.003423]
[1728054886016,0.03302018,61785.0,61784.0,0.003423]
[1728054886232,0.19487118,61785.0,61784.0,0.003423]
[1728054886453,0.03302018,61785.0,61784.0,0.003423]
[1728054886634,0.02702018,61785.0,61784.0,0.002423]
[1728054887088,0.02702018,61785.0,61784.0,0.007423]
[1728054887304,0.18987118,61785.0,61784.0,0.006923]
[1728054887521,0.4705285,61785.0,61784.0,0.006923]
[1728054887782,0.5851285,61785.0,61784.0,0.000923]
[1728054887999,0.6851285,61785.0,61784.0,0.001923]
[1728054888236,0.84831521,61785.0,61784.0,0.001923]
[1728054888687,0.86131521,61785.0,61784.0,0.001923]
[1728054888917,1.00678849,61785.0,61784.0,0.001923]
[1728054889370,1.00678849,61785.0,61784.0,0.002923]
[1728054889371,1.02078849,61785.0,61784.0,0.002923]
[1728054890045,0.87614639,61785.0,61784.0,0.001923]
[1728054890259,0.89014639,61785.0,61784.0,0.001923]
[1728054890484,0.89014639,61785.0,61764.0,0.24543893]
[1728054890485,0.161903,61765.0,61764.0,0.24543893]
[1728054890952,0.29783418,61765.0,61764.0,0.24543893]
[1728054891169,0.29783418,61765.0,61756.0,0.0160301]
[1728054891170,0.261909,61763.0,61756.0,0.0160301]
[1728054891411,0.29874018,61763.0,61756.0,0.0160301]
[1728054891703,0.46242689,61763.0,61756.0,0.0160301]
[1728054891934,0.53518161,61763.0,61756.0,0.0160301]
[1728054892381,0.53518161,61763.0,61762.0,0.001822]
[1728054892382,0.43398676,61763.0,61762.0,0.001822]
[1728054892646,0.124769,61763.0,61762.0,0.001822]
[1728054892903,0.02783118,61763.0,61762.0,0.001822]
[1728054893120,0.02783118,61763.0,61762.0,0.165233]
[1728054893558,0.02783118,61763.0,61762.0,0.001822]
[1728054893794,0.22420774,61763.0,61762.0,0.000822]
[1728054894036,0.22994985,61763.0,61762.0,0.000822]
[1728054894271,0.32098676,61763.0,61762.0,0.000822]
[1728054894514,0.29685921,61763.0,61762.0,0.000822]
[1728054894776,0.162909,61763.0,61762.0,0.000822]
[1728054895003,0.006,61763.0,61762.0,0.000822]
[1728054895233,0.006,61763.0,61762.0,0.162733]
[1728054895234,0.12468844,61763.0,61762.0,0.162733]
[1728054895470,0.02779179,61763.0,61762.0,0.162733]
[1728054897088,0.02779179,61763.0,61762.0,0.164233]
[1728054897089,0.01379179,61763.0,61762.0,0.164233]
[1728054897325,0.01479179,61763.0,61762.0,0.164233]
[1728054897555,0.02879179,61763.0,61762.0,0.164233]
[1728054897775,0.01479179,61763.0,61762.0,0.164233]
[1728054898008,0.01579179,61763.0,61762.0,0.243133]
[1728054898713,0.01379179,61763.0,61762.0,0.243133]
[1728054898715,0.01379179,61763.0,61762.0,0.000822]
[1728054898716,0.17570079,61763.0,61762.0,0.000822]
[1728054898719,0.17772966,61763.0,61762.0,0.000822]
[1728054898935,0.02864063,61763.0,61762.0,0.002322]
[1728054899161,0.19054963,61763.0,61762.0,0.000822]
[1728054899399,0.02864063,61763.0,61762.0,0.000822]
[1728054899625,0.02864063,61763.0,61762.0,0.162733]
[1728054899888,0.01481997,61763.0,61762.0,0.162733]
[1728054900107,0.01381997,61763.0,61762.0,0.162733]
[1728054900344,0.01581997,61763.0,61762.0,0.162733]
[1728054900596,0.01481997,61763.0,61762.0,0.162733]
[1728054900835,0.01681997,61763.0,61762.0,0.162733]
[1728054901063,0.323769,61773.0,61762.0,0.162733]
[1728054901064,0.161904,61765.0,61762.0,0.162733]
[1728054901329,0.323769,61773.0,61762.0,0.162733]
[1728054901330,0.001,61763.0,61762.0,0.162733]
[1728054901559,0.002,61763.0,61762.0,0.162733]
[1728054901786,0.26234684,61775.0,61774.0,0.16188]
[1728054901787,0.24543893,61775.0,61774.0,0.16188]
[1728054902287,0.24543893,61775.0,61774.0,0.23698]
[1728054902532,0.01379934,61775.0,61774.0,0.23698]
[1728054903665,0.02760318,61775.0,61774.0,0.23698]
[1728054903887,0.24543893,61784.0,61777.0,0.161872]
[1728054903888,0.01380384,61778.0,61777.0,0.161872]
[1728054904107,0.24543893,61784.0,61774.0,0.56224]
[1728054904108,0.01380384,61775.0,61774.0,0.56224]
[1728054904323,0.24543893,61784.0,61778.0,0.0015]
[1728054904580,0.24543893,61784.0,61774.0,0.0831]
[1728054904581,0.01379842,61783.0,61775.0,0.0015]
[1728054904833,0.01379842,61782.0,61775.0,0.0015]
[1728054905114,0.24543893,61784.0,61775.0,0.0015]
[1728054905115,0.01379842,61781.0,61775.0,0.0015]
[1728054905360,0.161875,61776.0,61775.0,0.0015]
[1728054905581,0.161875,61776.0,61769.0,0.0015]
[1728054905582,0.01379842,61776.0,61769.0,0.0015]
[1728054905818,0.28065732,61774.0,61762.0,0.000822]
[1728054906118,0.161909,61763.0,61762.0,0.000822]
[1728054906334,0.17570742,61763.0,61762.0,0.000822]
[1728054906556,0.47936474,61763.0,61762.0,0.000822]
[1728054906806,0.57856474,61763.0,61762.0,0.000822]
[1728054907273,0.57856474,61763.0,61762.0,0.001822]
[1728054907496,0.74275145,61763.0,61762.0,0.000822]
[1728054907738,0.57956474,61763.0,61762.0,0.000822]
[1728054907983,0.19070742,61763.0,61762.0,0.001822]
[1728054908197,0.19070742,61763.0,61762.0,0.000822]
[1728054908198,0.01379842,61763.0,61762.0,0.000822]
[1728054908442,0.20070742,61763.0,61762.0,0.001822]
[1728054908704,0.27211928,61763.0,61762.0,0.001822]
[1728054909174,0.22370742,61763.0,61762.0,0.001822]
[1728054910142,0.47090742,61763.0,61762.0,0.000822]
[1728054910373,0.36610742,61763.0,61762.0,0.001822]
[1728054910604,0.29770742,61763.0,61762.0,0.001822]
[1728054910813,0.28670742,61763.0,61762.0,0.000822]
[1728054911027,0.27570742,61763.0,61762.0,0.000822]
[1728054911284,0.28970742,61763.0,61762.0,0.001822]
[1728054911528,0.28670742,61763.0,61762.0,0.000822]
[1728054911774,0.28670742,61763.0,61762.0,0.001822]
[1728054912033,0.46590742,61763.0,61762.0,0.001822]
[1728054912268,0.48890742,61763.0,61762.0,0.001822]
[1728054912486,0.74883774,61763.0,61762.0,0.001822]
[1728054913191,0.57465103,61763.0,61762.0,0.000822]
[1728054913402,0.48440742,61763.0,61762.0,0.000822]
[1728054913645,0.47790742,61763.0,61762.0,0.000822]
[1728054913935,0.48290742,61763.0,61762.0,0.000822]
[1728054914155,0.19470742,61763.0,61762.0,0.000822]
[1728054914382,0.02779842,61763.0,61762.0,0.162733]
[1728054914614,0.04079842,61763.0,61762.0,0.162733]
[1728054914825,0.02679842,61763.0,61762.0,0.164233]
[1728054915049,0.04079842,61763.0,61762.0,0.002322]
[1728054915298,0.02779842,61763.0,61762.0,0.002322]
[1728054915520,0.02779842,61763.0,61762.0,0.164233]
[1728054915768,0.03279842,61763.0,61762.0,0.164233]
[1728054916519,0.01879842,61763.0,61762.0,0.164233]
[1728054916767,0.006,61763.0,61762.0,0.164233]
[1728054916990,0.04835682,61773.0,61771.0,0.0015]
[1728054917231,0.04835682,61774.0,61771.0,0.0015]
[1728054917448,0.04835682,61773.0,61771.0,0.163386]
[1728054917691,0.161878,61775.0,61771.0,0.0015]
[1728054917692,0.161885,61772.0,61771.0,0.0015]
[1728054917983,0.161877,61775.0,61774.0,0.0015]
[1728054918220,0.161885,61772.0,61771.0,0.0015]
[1728054918456,0.17566434,61772.0,61771.0,0.0015]
[1728054918699,0.01377934,61772.0,61767.0,0.0015]
[1728054918915,0.07253524,61779.0,61767.0,0.0015]
[1728054918916,0.01377934,61771.0,61767.0,0.0015]
[1728054919153,0.01377934,61770.0,61767.0,0.0015]
[1728054919403,0.24543893,61776.0,61767.0,0.0015]
[1728054919404,0.01377934,61769.0,61767.0,0.0015]
[1728054919621,0.161893,61769.0,61768.0,0.0015]
[1728054919862,0.323756,61775.0,61773.0,0.0015]
[1728054919863,0.16188,61774.0,61773.0,0.0015]
[1728054920114,0.16188,61774.0,61769.0,0.0015]
[1728054920115,0.16189,61770.0,61769.0,0.0015]
[1728054920408,0.161909,61763.0,61762.0,0.000822]
[1728054921123,0.17566913,61763.0,61762.0,0.000822]
[1728054922283,0.18466913,61763.0,61762.0,0.000822]
[1728054922760,0.02276013,61763.0,61762.0,0.000822]
[1728054923003,0.18466913,61763.0,61762.0,0.000822]
[1728054923462,0.17566913,61763.0,61762.0,0.000822]
[1728054923908,0.18366913,61763.0,61762.0,0.000822]
[1728054924151,0.18366913,61763.0,61762.0,0.002322]
[1728054924419,0.18366913,61763.0,61762.0,0.000822]
[1728054924420,0.18066913,61763.0,61762.0,0.000822]
[1728054924641,0.17966913,61763.0,61762.0,0.000822]
[1728054925339,0.18666913,61763.0,61762.0,0.000822]
[1728054925633,0.32270687,61763.0,61762.0,0.000822]
[1728054925864,0.34570687,61763.0,61762.0,0.000822]
[1728054926087,0.30566913,61763.0,61762.0,0.000822]
[1728054926311,0.30566913,61763.0,61756.0,0.0160301]
[1728054926312,0.284924,61757.0,61756.0,0.0160301]
[1728054926558,0.56558132,61757.0,61756.0,0.0160301]
[1728054927059,0.56558132,61757.0,61744.0,0.001642]
[1728054927061,0.161956,61745.0,61744.0,0.001642]
[1728054927311,0.44261332,61745.0,61744.0,0.001642]
[1728054928238,0.45644002,61745.0,61744.0,0.001642]
[1728054929142,0.45644002,61745.0,61744.0,0.163601]
[1728054929143,0.0138267,61745.0,61744.0,0.163601]
[1728054929662,0.0258267,61745.0,61744.0,0.163601]
[1728054929879,0.01382614,61757.0,61751.0,0.323879]
[1728054929880,0.24543893,61753.0,61751.0,0.323879]
[1728054930109,0.24543893,61753.0,61752.0,0.161938]
[1728054930354,0.24543893,61760.0,61744.0,0.001642]
[1728054930594,0.24543893,61760.0,61759.0,0.163419]
[1728054930871,0.24543893,61760.0,61759.0,0.0015]
[1728054930872,0.25928102,61760.0,61759.0,0.0015]
[1728054931100,0.17575909,61760.0,61759.0,0.0015]
[1728054931579,0.01384209,61760.0,61759.0,0.0015]
[1728054932245,0.01584209,61760.0,61759.0,0.163419]
[1728054932905,0.08851561,61760.0,61759.0,0.163419]
[1728054933135,0.49587154,61760.0,61759.0,0.002]
[1728054933370,0.49587154,61760.0,61759.0,0.0015]
[1728054933371,0.09889802,61760.0,61759.0,0.0015]
[1728054933612,0.1409639,61760.0,61759.0,0.0015]
[1728054933836,0.01784137,61760.0,61759.0,0.0015]
[1728054934065,0.02384137,61760.0,61759.0,0.0015]
[1728054934294,0.14605131,61760.0,61759.0,0.0015]
[1728054934524,0.13605131,61760.0,61759.0,0.0015]
[1728054934750,0.18375837,61760.0,61759.0,0.0015]
[1728054934972,0.14304541,61760.0,61759.0,0.0015]
[1728054935184,0.13604541,61760.0,61759.0,0.0015]
[1728054935397,0.1118008,61760.0,61759.0,0.0015]
[1728054935611,0.01684137,61760.0,61759.0,0.0015]
[1728054935846,0.01684137,61760.0,61759.0,0.163419]
[1728054935847,0.01984137,61760.0,61759.0,0.163419]
[1728054936070,0.01984137,61760.0,61759.0,0.0015]
[1728054936312,0.01984137,61760.0,61759.0,0.163419]
[1728054936808,0.01684137,61760.0,61759.0,0.163419]
[1728054937076,0.01680358,61760.0,61759.0,0.163419]
[1728054937326,0.02080358,61760.0,61759.0,0.163419]
[1728054938397,0.01680358,61760.0,61759.0,0.163419]
[1728054938614,0.01380358,61760.0,61759.0,0.163419]
[1728054939100,0.01480358,61760.0,61759.0,0.169419]
[1728054939845,0.01480358,61760.0,61759.0,0.0075]
[1728054940352,0.01480358,61760.0,61759.0,0.006]
[1728054941387,0.01480358,61760.0,61759.0,0.169419]
[1728054942075,0.01480358,61760.0,61759.0,0.0075]
[1728054942341,0.01480358,61760.0,61759.0,0.169419]
[1728054942799,0.01480358,61760.0,61759.0,0.0075]
[1728054943147,0.17672058,61760.0,61759.0,0.006]
[1728054943360,0.01480358,61760.0,61759.0,0.006]
[1728054943607,0.17672058,61760.0,61759.0,0.006]
[1728054943812,0.01480358,61760.0,61759.0,0.006]
[1728054944015,0.17672058,61760.0,61759.0,0.006]
[1728054944719,0.17836058,61760.0,61759.0,0.006]
[1728054945172,0.18336058,61760.0,61759.0,0.006]
[1728054945380,0.02044358,61760.0,61759.0,0.161919]
[1728054945598,0.02244358,61760.0,61759.0,0.161919]
[1728054946457,0.02044358,61760.0,61759.0,0.161919]
[1728054946671,0.00164,61760.0,61759.0,0.166419]
[1728054946883,0.01543202,61760.0,61759.0,0.166419]
[1728054947113,0.01643202,61760.0,61759.0,0.166419]
[1728054947359,0.01643202,61760.0,61759.0,0.16844838]
[1728054948443,0.01643202,61760.0,61759.0,0.50693509]
[1728054948444,0.00264,61760.0,61759.0,0.50693509]
[1728054948712,0.24543893,61770.0,61769.0,0.0005]
[1728054948943,0.24543893,61770.0,61769.0,0.338693]
[1728054948944,0.25921537,61770.0,61769.0,0.338693]
[1728054949135,0.24707893,61784.0,61776.0,0.0015]
[1728054949352,0.24707893,61784.0,61776.0,0.163375]
[1728054949353,0.25920251,61777.0,61776.0,0.163375]
[1728054949561,0.01376358,61777.0,61776.0,0.163375]
[1728054950539,0.01476358,61777.0,61776.0,0.170375]
[1728054951574,0.01476358,61777.0,61776.0,0.0085]
[1728054951727,0.01576358,61777.0,61776.0,0.170375]
[1728054951919,0.01576358,61777.0,61776.0,0.0085]
[1728054952470,0.01576358,61777.0,61776.0,0.170375]
[1728054954672,0.04114265,61777.0,61776.0,0.170375]
[1728054954907,0.02737907,61777.0,61776.0,0.170375]
[1728054955379,0.002,61777.0,61776.0,0.270375]
[1728054955627,0.00164,61784.0,61783.0,0.263356]
[1728054956118,0.00164,61784.0,61783.0,0.163356]
[1728054956358,0.00164,61784.0,61783.0,0.0015]
[1728054956617,0.17714501,61784.0,61783.0,0.0015]
[1728054956835,0.163494,61784.0,61783.0,0.0015]
[1728054957065,0.163494,61784.0,61772.0,0.32377]
[1728054957066,0.163494,61784.0,61772.0,0.0015]
[1728054957067,0.00164,61784.0,61772.0,0.0015]
[1728054957327,0.00164,61784.0,61773.0,0.24543893]
[1728054957328,0.161879,61775.0,61773.0,0.24543893]
[1728054957558,0.161879,61775.0,61772.0,0.0015]
[1728054957559,0.01365101,61774.0,61772.0,0.24693893]
[1728054957787,0.00164,61777.0,61766.0,0.400002]
[1728054957788,0.00164,61777.0,61775.0,0.0015]
[1728054958023,0.00164,61777.0,61776.0,0.0015]
[1728054958234,0.01632589,61777.0,61776.0,0.168375]
[1728054958471,0.20357886,61777.0,61776.0,0.0065]
[1728054958905,0.20257886,61777.0,61776.0,0.0015]
[1728054959365,0.161875,61776.0,61775.0,0.0015]
[1728054959581,0.17556089,61776.0,61775.0,0.0015]
[1728054959826,0.01368589,61776.0,61775.0,0.0015]
[1728054960332,0.01369547,61776.0,61772.0,0.0015]
[1728054960563,0.485633,61775.0,61774.0,0.0015]
[1728054960805,0.161877,61775.0,61774.0,0.0015]
[1728054961030,0.17557247,61775.0,61774.0,0.0015]
[1728054961261,0.01369547,61775.0,61774.0,0.0015]
[1728054961536,0.29435279,61775.0,61765.0,0.0015]
[1728054961770,0.01569547,61776.0,61760.0,0.0015]
[1728054961771,0.28065732,61769.0,61760.0,0.0015]
[1728054962018,0.28065732,61769.0,61763.0,0.161907]
[1728054962019,0.1619,61767.0,61763.0,0.161907]
[1728054962265,0.161884,61773.0,61766.0,0.323802]
[1728054962507,0.33744747,61776.0,61775.0,0.163377]
[1728054962508,0.01469547,61776.0,61775.0,0.163377]
[1728054962742,0.01369547,61776.0,61775.0,0.163377]
[1728054963214,0.02738114,61776.0,61775.0,0.163377]
[1728054963944,0.01369547,61776.0,61775.0,0.163377]
[1728054964897,0.02038963,61776.0,61775.0,0.163377]
[1728054965371,0.02138963,61776.0,61775.0,0.168377]
[1728054965579,0.02138963,61776.0,61775.0,0.163377]
[1728054965789,0.02138963,61776.0,61775.0,0.173377]
[1728054966012,0.00769547,61776.0,61775.0,0.163377]
[1728054966957,0.00769547,61776.0,61775.0,0.166377]
[1728054967198,0.00869547,61776.0,61775.0,0.167377]
[1728054967674,0.00769547,61776.0,61775.0,0.166377]
[1728054967943,0.00769547,61776.0,61775.0,0.167377]
[1728054968164,0.00769547,61776.0,61775.0,0.60556371]
[1728054968403,0.00769547,61776.0,61775.0,0.60156371]
[1728054968404,0.00669547,61776.0,61775.0,0.60156371]
[1728054968602,0.00769547,61776.0,61775.0,0.60756371]
[1728054969068,0.00769547,61776.0,61775.0,0.6118129]
[1728054969319,0.00669547,61776.0,61775.0,0.6068129]
[1728054969549,0.00769547,61776.0,61775.0,0.6068129]
[1728054969791,0.00164,61784.0,61783.0,0.0015]
[1728054970028,0.00164,61784.0,61783.0,0.78670003]
[1728054970958,0.00164,61784.0,61783.0,0.78570003]
[1728054971618,0.00164,61784.0,61783.0,0.62251332]
[1728054972027,0.00164,61784.0,61783.0,0.63651332]
[1728054972260,0.00264,61784.0,61783.0,0.62351332]
[1728054972775,0.00264,61784.0,61783.0,0.63751332]
[1728054973263,0.00264,61784.0,61783.0,0.62351332]
[1728054973496,0.00264,61784.0,61783.0,0.356856]
[1728054973720,0.00164,61784.0,61783.0,0.355856]
[1728054973944,0.00264,61784.0,61783.0,0.36304714]
[1728054974448,0.00164,61784.0,61783.0,0.64070446]
[1728054974665,0.00164,61784.0,61783.0,0.78989117]
[1728054974892,0.00264,61784.0,61783.0,0.79289117]
[1728054975132,0.00364,61784.0,61783.0,0.80689117]
[1728054975396,0.00264,61784.0,61783.0,0.79289117]
[1728054975612,0.00264,61784.0,61783.0,0.80389117]
[1728054975872,0.00164,61784.0,61783.0,0.78989117]
[1728054976091,0.00164,61784.0,61783.0,0.80389117]
[1728054976092,0.00264,61784.0,61783.0,0.80389117]
[1728054976556,0.00164,61784.0,61783.0,0.78989117]
[1728054976804,0.00164,61784.0,61783.0,0.80389117]
[1728054976805,0.00264,61784.0,61783.0,0.80389117]
[1728054977063,0.00264,61784.0,61783.0,0.80789117]
[1728054977064,0.00364,61784.0,61783.0,0.80789117]
[1728054977510,0.00264,61784.0,61783.0,0.80589117]
[1728054977740,0.00364,61784.0,61783.0,0.80789117]
[1728054978202,0.00164,61784.0,61783.0,0.79189117]
[1728054978422,0.00364,61784.0,61783.0,0.80789117]
[1728054978652,0.00264,61784.0,61783.0,0.79389117]
[1728054979122,0.00364,61784.0,61783.0,0.80789117]
[1728054979369,0.00364,61784.0,61783.0,0.80689117]
[1728054979799,0.001644,61785.0,61784.0,0.270354]
[1728054979802,0.24543893,61805.0,61804.0,0.163301]
[1728054980391,0.24543893,61815.0,61811.0,0.161783]
[1728054980784,0.24543893,61815.0,61810.0,0.0015]
[1728054981014,0.161773,61815.0,61811.0,0.161783]
[1728054981261,0.56897893,61816.0,61810.0,0.0015]
[1728054981502,0.161779,61813.0,61810.0,0.0015]